Workbook

Sheet Begin
B1: OVER DEZE SJABLOON
B2: Gebruik deze sjabloon om Kanaalmarketingbudget te maken.
B3: Voer de verwachte verkoop voor elke maand en andere gegevens in tabellen in.
B4: Totalen worden automatisch berekend en sparklines worden bijgewerkt.
B5: Opmerking:
B6: Kolom A van het werkblad Kanaalmarketingbudget bevat aanvullende instructies. Deze tekst is opzettelijk verborgen. Als u tekst wilt verwijderen, selecteert u kolom A en drukt u op Delete. Als u de tekst zichtbaar wilt maken, selecteert u kolom A en wijzigt u de tekenkleur.
B7: Als u meer wilt weten over tabellen, drukt u in een tabel op Shift en F10 en selecteert u de optie Tabel en vervolgens Alternatieve tekst.

Sheet Kanaalmarketingbudget
A1: Maak Kanaalmarketingbudget in dit werkblad. De titel van dit werkblad staat in de cel rechts. Nuttige instructies zijn te vinden in de cellen in deze kolom. Druk op de pijl-omlaag om aan de slag te gaan. De titel van dit werkblad staat in de cel rechts. | B1: KANAALMARKETINGBUDGET
A2: Tarief- en maandlabels staan in deze rij, van cel C2 tot en met O2 en het label Totaal staat in cel Q2. | C2: Tarief | D2: Maand 1 | E2: Maand 2 | F2: Maand 3 | G2: Maand 4 | H2: Maand 5 | I2: Maand 6 | J2: Maand 7 | K2: Maand 8 | L2: Maand 9 | M2: Maand 10 | N2: Maand 11 | O2: Maand 12 | Q2: Totaal
A3: Label voor verwacht verkooptotaal staat in cel rechts. Voer verwachte verkoop voor elke maand in cel D3 tot en met O3 in. Totaal wordt automatisch berekend in cel Q3. | B3: VERWACHT VERKOOPTOTAAL € (000) | D3: 750 | E3: 200 | F3: 500 | G3: 1,500 | H3: 1,200 | I3: 1,500 | J3: 1,500 | K3: 1,800 | L3: 2,000 | M3: 2,000 | N3: 2,000 | O3: 2,000 | Q3: =SUM(D3:O3) -> 16,950
A4: Voer de gegevens in de tabel Personeel in, vanaf de cel rechts. Totaal personeel voor elke maand wordt automatisch berekend aan het einde van de tabel, en het jaarlijkse totaal in cel Q9. Sparkline wordt bijgewerkt in cel S9. De volgende aanwijzing staat in cel A10. | B4: Personeelitems | C4: Tarief | D4: Maand 1 | E4: Maand 2 | F4: Maand 3 | G4: Maand 4 | H4: Maand 5 | I4: Maand 6 | J4: Maand 7 | K4: Maand 8 | L4: Maand 9 | M4: Maand 10 | N4: Maand 11 | O4: Maand 12
B5: PERSONEEL (% VAN TOTALE VERKOOP) | D5: =D11+D33+D41+D48 -> 110% | E5: 110% | F5: 110% | G5: 110% | H5: 110% | I5: 110% | J5: 110% | K5: 110% | L5: 85% | M5: 85% | N5: 85% | O5: 85%
B6: HR - personeelsbezetting | C6: 5 | D6: =+$C$6 -> 5 | E6: 5 | F6: 5 | G6: 5 | H6: 5 | I6: 5 | J6: 5 | K6: 5 | L6: 5 | M6: 5 | N6: 5 | O6: 5
B7: HR - kosten | D7: =$C$6*D6 -> 25.00 | E7: 25.00 | F7: 25.00 | G7: 25.00 | H7: 25.00 | I7: 25.00 | J7: 25.00 | K7: 25.00 | L7: 25.00 | M7: 25.00 | N7: 25.00 | O7: 25.00 | Q7: =SUM(Kanaalmarketingbudget!$D7:$O7) -> 300.00
B8: Provisie | C8: 0.10% | D8: =D3*$C$8 -> 0.75 | E8: 0.20 | F8: 0.50 | G8: 1.50 | H8: 1.20 | I8: 1.50 | J8: 1.50 | K8: 1.80 | L8: 2.00 | M8: 2.00 | N8: 2.00 | O8: 2.00 | Q8: =SUM(Kanaalmarketingbudget!$D8:$O8) -> 16.95
B9: Totaal personeel € (000) | D9: =SUM(D7:D8) -> 25.75 | E9: =SUM(E7:E8) -> 25.20 | F9: 25.50 | G9: 26.50 | H9: 26.20 | I9: 26.50 | J9: 26.50 | K9: 26.80 | L9: 27.00 | M9: 27.00 | N9: 27.00 | O9: 27.00 | Q9: =SUM(Q7:Q8) -> 316.95
A10: Voer de gegevens in de tabel Direct Marketing in, vanaf de cel rechts. Totaal telemarketing voor elke maand wordt automatisch berekend aan het einde van de tabel, en het jaarlijks totaal in cel Q17. Sparkline wordt bijgewerkt in cel S17. De volgende aanwijzing staat in cel A18. | B10: Direct marketing-items | C10: Tarief | D10: Maand 1 | E10: Maand 2 | F10: Maand 3 | G10: Maand 4 | H10: Maand 5 | I10: Maand 6 | J10: Maand 7 | K10: Maand 8 | L10: Maand 9 | M10: Maand 10 | N10: Maand 11 | O10: Maand 12
B11: DIRECT MARKETING (% VAN TOTALE VERKOOP) | D11: 100% | E11: 100% | F11: 75% | G11: 40% | H11: 33% | I11: 25% | J11: 20% | K11: 10% | L11: 5% | M11: 5% | N11: 5% | O11: 5%
B12: Telemarketing (% van directe verkoop) | D12: 100% | E12: 50% | F12: 50% | G12: 50% | H12: 50% | I12: 50% | J12: 50% | K12: 50% | L12: 50% | M12: 50% | N12: 50% | O12: 50%
B13: HR - personeelsbezetting | C13: 3 | D13: =$C$13*D12 -> 3 | E13: 1.5 | F13: 1.5 | G13: 1.5 | H13: 1.5 | I13: 1.5 | J13: 1.5 | K13: 1.5 | L13: 1.5 | M13: 1.5 | N13: 1.5 | O13: 1.5 | Q13: =SUM(Kanaalmarketingbudget!$D13:$O13) -> 19.50
B14: Infrastructuurondersteuning | D14: 25 | E14: 10 | F14: 25 | G14: 10 | H14: 25 | I14: 10 | J14: 25 | K14: 10 | L14: 25 | M14: 10 | N14: 25 | O14: 10 | Q14: =SUM(Kanaalmarketingbudget!$D14:$O14) -> 210.00
B15: Provisie | C15: 0.10% | D15: =$C$15*D3*D11*D12 -> 0.75 | E15: 0.10 | F15: 0.19 | G15: 0.30 | H15: 0.20 | I15: 0.19 | J15: 0.15 | K15: 0.09 | L15: 0.05 | M15: 0.05 | N15: 0.05 | O15: 0.05 | Q15: =SUM(Kanaalmarketingbudget!$D15:$O15) -> 2.16
B16: Training | D16: 25 | E16: 10 | F16: 25 | G16: 10 | H16: 25 | I16: 10 | J16: 25 | K16: 10 | L16: 25 | M16: 10 | N16: 25 | O16: 10 | Q16: =SUM(Kanaalmarketingbudget!$D16:$O16) -> 210.00
B17: Totaal telemarketing € (000) | D17: =SUM(D13:D16) -> 53.75 | E17: =SUM(E13:E16) -> 21.60 | F17: =SUM(F13:F16) -> 51.69 | G17: 21.80 | H17: 51.70 | I17: 21.69 | J17: 51.65 | K17: 21.59 | L17: 51.55 | M17: 21.55 | N17: 51.55 | O17: 21.55 | Q17: =SUM(Q13:Q16) -> 441.66
A18: Voer de gegevens in de tabel Internetmarketing in, vanaf de cel rechts. Totaal internetmarketing voor elke maand wordt automatisch berekend aan het einde van de tabel, en het jaarlijkse totaal in cel Q24. Sparkline wordt bijgewerkt in cel S24. De volgende aanwijzing staat in cel A25. | B18: Internetmarketing-items | C18: Tarief | D18: Maand 1 | E18: Maand 2 | F18: Maand 3 | G18: Maand 4 | H18: Maand 5 | I18: Maand 6 | J18: Maand 7 | K18: Maand 8 | L18: Maand 9 | M18: Maand 10 | N18: Maand 11 | O18: Maand 12
B19: Internetmarketing (% van directe verkoop) | D19: 25% | E19: 25% | F19: 25% | G19: 25% | H19: 25% | I19: 25% | J19: 25% | K19: 25% | L19: 25% | M19: 25% | N19: 25% | O19: 25%
B20: HR - personeelsbezetting | C20: 1 | D20: =$C$20*D19 -> 0.25 | E20: 0.25 | F20: 0.25 | G20: 0.25 | H20: 0.25 | I20: 0.25 | J20: 0.25 | K20: 0.25 | L20: 0.25 | M20: 0.25 | N20: 0.25 | O20: 0.25 | Q20: =SUM(Kanaalmarketingbudget!$D20:$O20) -> 3.00
B21: Websiteontwikkeling (eenmalige kosten) | D21: 500 | Q21: =SUM(Kanaalmarketingbudget!$D21:$O21) -> 500.00
B22: Hosting | D22: 10 | E22: 10 | F22: 10 | G22: 10 | H22: 10 | I22: 10 | J22: 10 | K22: 10 | L22: 10 | M22: 10 | N22: 10 | O22: 10 | Q22: =SUM(Kanaalmarketingbudget!$D22:$O22) -> 120.00
B23: Ondersteuning en onderhoud | D23: 25 | N23: 25 | Q23: =SUM(Kanaalmarketingbudget!$D23:$O23) -> 50.00
B24: Totaal internetmarketing € (000) | D24: =SUM(D20:D23) -> 535.25 | E24: =SUM(E20:E23) -> 10.25 | F24: 10.25 | G24: 10.25 | H24: 10.25 | I24: 10.25 | J24: 10.25 | K24: 10.25 | L24: 10.25 | M24: 10.25 | N24: 35.25 | O24: 10.25 | Q24: =SUM(Q20:Q23) -> 673.00
A25: Voer de gegevens in de tabel Direct Mail in, vanaf de cel rechts. Totaal Direct Mail voor elke maand wordt automatisch berekend aan het einde van de tabel, en het jaarlijkse totaal in cel Q30. De volgende aanwijzing staat in cel A31. | B25: Direct Mail-Items | C25: Tarief | D25: Maand 1 | E25: Maand 2 | F25: Maand 3 | G25: Maand 4 | H25: Maand 5 | I25: Maand 6 | J25: Maand 7 | K25: Maand 8 | L25: Maand 9 | M25: Maand 10 | N25: Maand 11 | O25: Maand 12
B26: Direct Mail (% van directe verkoop)
B27: HR - kosten | Q27: =SUM(Kanaalmarketingbudget!$D27:$O27) -> 0.00
B28: Materiaal | D28: 1000 | E28: 1000 | F28: 1000 | G28: 1000 | H28: 1000 | I28: 1000 | J28: 1000 | K28: 1000 | L28: 1000 | M28: 1000 | N28: 1000 | O28: 1000 | Q28: =SUM(Kanaalmarketingbudget!$D28:$O28) -> 12,000.00
B29: Portokosten | D29: 250 | E29: 250 | F29: 250 | G29: 250 | H29: 250 | I29: 250 | J29: 250 | K29: 250 | L29: 250 | M29: 250 | N29: 250 | O29: 250 | Q29: =SUM(Kanaalmarketingbudget!$D29:$O29) -> 3,000.00
B30: Totaal Direct Mail € (000) | D30: =SUM(D27:D29) -> 1,250.00 | E30: =SUM(E27:E29) -> 1,250.00 | F30: 1,250.00 | G30: 1,250.00 | H30: 1,250.00 | I30: 1,250.00 | J30: 1,250.00 | K30: 1,250.00 | L30: 1,250.00 | M30: 1,250.00 | N30: 1,250.00 | O30: 1,250.00 | Q30: =SUM(Q27:Q29) -> 15,000.00
A31: Totaal Direct Marketing wordt automatisch berekend in deze rij, van cel D31 tot en met O31, en het jaarlijkse totaal in cel Q31. Sparkline wordt bijgewerkt in cel S31. | B31: Totaal Direct Marketing € (000) | D31: =SUM(DirectMail[[#Totals],[Maand 1]],InternetMarketing[[#Totals],[Maand 1]],DirectMarketing[[#Totals],[Maand 1]]) -> 1,839.00 | E31: =SUM(DirectMail[[#Totals],[Maand 2]],InternetMarketing[[#Totals],[Maand 2]],DirectMarketing[[#Totals],[Maand 2]]) -> 1,281.85 | F31: =SUM(DirectMail[[#Totals],[Maand 3]],InternetMarketing[[#Totals],[Maand 3]],DirectMarketing[[#Totals],[Maand 3]]) -> 1,311.94 | G31: =SUM(DirectMail[[#Totals],[Maand 4]],InternetMarketing[[#Totals],[Maand 4]],DirectMarketing[[#Totals],[Maand 4]]) -> 1,282.05 | H31: =SUM(DirectMail[[#Totals],[Maand 5]],InternetMarketing[[#Totals],[Maand 5]],DirectMarketing[[#Totals],[Maand 5]]) -> 1,311.95 | I31: =SUM(DirectMail[[#Totals],[Maand 6]],InternetMarketing[[#Totals],[Maand 6]],DirectMarketing[[#Totals],[Maand 6]]) -> 1,281.94 | J31: =SUM(DirectMail[[#Totals],[Maand 7]],InternetMarketing[[#Totals],[Maand 7]],DirectMarketing[[#Totals],[Maand 7]]) -> 1,311.90 | K31: =SUM(DirectMail[[#Totals],[Maand 8]],InternetMarketing[[#Totals],[Maand 8]],DirectMarketing[[#Totals],[Maand 8]]) -> 1,281.84 | L31: =SUM(DirectMail[[#Totals],[Maand 9]],InternetMarketing[[#Totals],[Maand 9]],DirectMarketing[[#Totals],[Maand 9]]) -> 1,311.80 | M31: =SUM(DirectMail[[#Totals],[Maand 10]],InternetMarketing[[#Totals],[Maand 10]],DirectMarketing[[#Totals],[Maand 10]]) -> 1,281.80 | N31: =SUM(DirectMail[[#Totals],[Maand 11]],InternetMarketing[[#Totals],[Maand 11]],DirectMarketing[[#Totals],[Maand 11]]) -> 1,336.80 | O31: =SUM(DirectMail[[#Totals],[Maand 12]],InternetMarketing[[#Totals],[Maand 12]],DirectMarketing[[#Totals],[Maand 12]]) -> 1,281.80 | Q31: =SUM(Q30,Q24,Q17,Q9) -> 16,431.61
A32: Voer de gegevens in de tabel Agent en tussenpersoon in, vanaf de cel rechts. Agent/tussenpersoon-items voor elke maand wordt automatisch berekend aan het einde van de tabel, en het jaarlijkse totaal in cel Q39. Sparkline wordt bijgewerkt in cel S39. De volgende aanwijzing staat in cel A40. | B32: Agent/tussenpersoon-items | C32: Tarief | D32: Maand 1 | E32: Maand 2 | F32: Maand 3 | G32: Maand 4 | H32: Maand 5 | I32: Maand 6 | J32: Maand 7 | K32: Maand 8 | L32: Maand 9 | M32: Maand 10 | N32: Maand 11 | O32: Maand 12
B33: AGENT/TUSSENPERSOON (% VAN TOTALE VERKOOP) | D33: 10% | E33: 10% | F33: 10% | G33: 10% | H33: 10% | I33: 10% | J33: 10% | K33: 10% | L33: 10% | M33: 10% | N33: 10% | O33: 10%
B34: Communicatie | D34: 50 | E34: 50 | F34: 50 | G34: 50 | H34: 50 | I34: 50 | J34: 50 | K34: 50 | L34: 50 | M34: 50 | N34: 50 | O34: 50 | Q34: =SUM(Kanaalmarketingbudget!$D34:$O34) -> 600.00
B35: Training | D35: 250.00 | E35: 250.00 | F35: 250.00 | G35: 250.00 | H35: 250.00 | I35: 250.00 | J35: 250.00 | K35: 250.00 | L35: 250.00 | M35: 250.00 | N35: 250.00 | O35: 250.00 | Q35: =SUM(Kanaalmarketingbudget!$D35:$O35) -> 3,000.00
B36: Reclame | D36: 600.00 | E36: 600.00 | F36: 600.00 | G36: 600.00 | H36: 600.00 | I36: 600.00 | J36: 600.00 | K36: 600.00 | L36: 600.00 | M36: 600.00 | N36: 600.00 | O36: 600.00 | Q36: =SUM(Kanaalmarketingbudget!$D36:$O36) -> 7,200.00
B37: Kortingen | C37: 10.00% | D37: =D3*D33*$C$37 -> 7.50 | E37: 2.00 | F37: 5.00 | G37: 15.00 | H37: 12.00 | I37: 15.00 | J37: 15.00 | K37: 18.00 | L37: 20.00 | M37: 20.00 | N37: 20.00 | O37: 20.00 | Q37: =SUM(Kanaalmarketingbudget!$D37:$O37) -> 169.50
B38: Commissie (% van verkopen agent) | C38: 10.00% | D38: =D3*D33*$C$38 -> 7.50 | E38: 2.00 | F38: 5.00 | G38: 15.00 | H38: 12.00 | I38: 15.00 | J38: 15.00 | K38: 18.00 | L38: 20.00 | M38: 20.00 | N38: 20.00 | O38: 20.00 | Q38: =SUM(Kanaalmarketingbudget!$D38:$O38) -> 169.50
B39: Agent/tussenpersoon-items € (000) | D39: =SUM(D34:D38) -> 915.00 | E39: =SUM(E34:E38) -> 904.00 | F39: 910.00 | G39: 930.00 | H39: 924.00 | I39: 930.00 | J39: 930.00 | K39: 936.00 | L39: 940.00 | M39: 940.00 | N39: 940.00 | O39: 940.00 | Q39: =SUM(Q34:Q38) -> 11,139.00
A40: Voer de gegevens in de tabel Distributeurs in, vanaf de cel rechts. Totaal Distributeurs voor elke maand wordt automatisch berekend aan het einde van de tabel, en het jaarlijkse totaal in cel Q46. Sparkline wordt bijgewerkt in cel S46. De volgende aanwijzing staat in cel A47. | B40: Distributeur-items | C40: Tarief | D40: Maand 1 | E40: Maand 2 | F40: Maand 3 | G40: Maand 4 | H40: Maand 5 | I40: Maand 6 | J40: Maand 7 | K40: Maand 8 | L40: Maand 9 | M40: Maand 10 | N40: Maand 11 | O40: Maand 12
B41: DISTRIBUTEURS (% VAN TOTALE VERKOOP) | D41: 0% | E41: 0% | F41: 0% | G41: 0% | H41: 0% | I41: 15% | J41: 20% | K41: 40% | L41: 40% | M41: 40% | N41: 40% | O41: 40%
B42: Communicatie | D42: 50 | E42: 50 | F42: 50 | G42: 50 | H42: 50 | I42: 50 | J42: 50 | K42: 50 | L42: 50 | M42: 50 | N42: 50 | O42: 50 | Q42: =SUM(Kanaalmarketingbudget!$D42:$O42) -> 600.00
B43: Training | D43: 250.00 | E43: 250.00 | F43: 250.00 | G43: 250.00 | H43: 250.00 | I43: 250.00 | J43: 250.00 | K43: 250.00 | L43: 250.00 | M43: 250.00 | N43: 250.00 | O43: 250.00 | Q43: =SUM(Distributeurs[[#This Row],[Maand 1]:[Maand 12]]) -> 3,000.00
B44: Reclame | D44: 600.00 | E44: 600.00 | F44: 600.00 | G44: 600.00 | H44: 600.00 | I44: 600.00 | J44: 600.00 | K44: 600.00 | L44: 600.00 | M44: 600.00 | N44: 600.00 | O44: 600.00 | Q44: =SUM(Distributeurs[[#This Row],[Maand 1]:[Maand 12]]) -> 7,200.00
B45: Commissie/kortingen (% van verkopen distributeurs) | C45: 15.00% | D45: =D3*D41*$C$45 -> 0 | E45: 0 | F45: 0 | G45: 0 | H45: 0 | I45: 33.75 | J45: 45 | K45: 108 | L45: 120 | M45: 120 | N45: 120 | O45: 120 | Q45: =SUM(Distributeurs[[#This Row],[Maand 1]:[Maand 12]]) -> 666.75
B46: Totaal Distributeurs € (000) | D46: =SUM(D42:D45) -> 900.00 | E46: =SUM(E42:E45) -> 900.00 | F46: 900.00 | G46: 900.00 | H46: 900.00 | I46: 933.75 | J46: 945.00 | K46: 1,008.00 | L46: 1,020.00 | M46: 1,020.00 | N46: 1,020.00 | O46: 1,020.00 | Q46: =SUM(Q42:Q45) -> 11,466.75
A47: Voer de gegevens in de tabel Detailhandelaar in, vanaf de cel rechts. Totaal Detailhandel voor elke maand wordt automatisch berekend aan het einde van de tabel, en het jaarlijkse totaal in cel Q53. Sparkline wordt bijgewerkt in cel S53. De volgende aanwijzing staat in cel A54. | B47: Detailhandelaren-items | C47: Tarief | D47: Maand 1 | E47: Maand 2 | F47: Maand 3 | G47: Maand 4 | H47: Maand 5 | I47: Maand 6 | J47: Maand 7 | K47: Maand 8 | L47: Maand 9 | M47: Maand 10 | N47: Maand 11 | O47: Maand 12
B48: DETAILHANDELAAR (% VAN TOTALE VERKOOP) | D48: 0% | E48: 0% | F48: 25% | G48: 60% | H48: 67% | I48: 60% | J48: 60% | K48: 50% | L48: 30% | M48: 30% | N48: 30% | O48: 30%
B49: Communicatie | D49: 50 | E49: 50 | F49: 50 | G49: 50 | H49: 50 | I49: 50 | J49: 50 | K49: 50 | L49: 50 | M49: 50 | N49: 50 | O49: 50
B50: Training | D50: 250.00 | E50: 250.00 | F50: 250.00 | G50: 250.00 | H50: 250.00 | I50: 250.00 | J50: 250.00 | K50: 250.00 | L50: 250.00 | M50: 250.00 | N50: 250.00 | O50: 250.00 | Q50: =SUM(Kanaalmarketingbudget!$D49:$O49) -> 600.00
B51: Reclame | D51: 600.00 | E51: 600.00 | F51: 600.00 | G51: 600.00 | H51: 600.00 | I51: 600.00 | J51: 600.00 | K51: 600.00 | L51: 600.00 | M51: 600.00 | N51: 600.00 | O51: 600.00 | Q51: =SUM(Kanaalmarketingbudget!$D50:$O50) -> 3,000.00
B52: Commissie/kortingen (% van detailhandelverkoop) | C52: 10.00% | D52: =D3*D48*$C$52 -> 0 | E52: 0 | F52: 12.5 | G52: 90 | H52: 80.4 | I52: 90 | J52: 90 | K52: 90 | L52: 60 | M52: 60 | N52: 60 | O52: 60 | Q52: =SUM(Kanaalmarketingbudget!$D52:$O52) -> 692.90
B53: Totaal Detailhandel € (000) | D53: =SUM(D49:D52) -> 900.00 | E53: =SUM(E49:E52) -> 900.00 | F53: 912.50 | G53: 990.00 | H53: 980.40 | I53: 990.00 | J53: 990.00 | K53: 990.00 | L53: 960.00 | M53: 960.00 | N53: 960.00 | O53: 960.00 | Q53: =SUM(Q50:Q52) -> 4,292.90
A54: Voer de gegevens in de tabel Klantacquisitie en -retentie in, vanaf de cel rechts. Totaal CAR voor elke maand wordt automatisch berekend aan het einde van de tabel, en het jaarlijkse totaal in cel Q59. Sparkline wordt bijgewerkt in cel S59. De volgende aanwijzing staat in cel A60. | B54: Items voor klantacquisitie en -retentie (CAR) | C54: Tarief | D54: Maand 1 | E54: Maand 2 | F54: Maand 3 | G54: Maand 4 | H54: Maand 5 | I54: Maand 6 | J54: Maand 7 | K54: Maand 8 | L54: Maand 9 | M54: Maand 10 | N54: Maand 11 | O54: Maand 12
B55: KLANTACQUISITIE EN -RETENTIE (CAR)
B56: Personeelszaken | D56: 50 | E56: 50 | F56: 50 | G56: 50 | H56: 50 | I56: 50 | J56: 50 | K56: 50 | L56: 50 | M56: 50 | N56: 50 | O56: 50 | Q56: =SUM(Kanaalmarketingbudget!$D56:$O56) -> 600.00
B57: Communicatie | D57: 250.00 | E57: 250.00 | F57: 250.00 | G57: 250.00 | H57: 250.00 | I57: 250.00 | J57: 250.00 | K57: 250.00 | L57: 250.00 | M57: 250.00 | N57: 250.00 | O57: 250.00 | Q57: =SUM(Kanaalmarketingbudget!$D57:$O57) -> 3,000.00
B58: Acties/vouchers | D58: 600 | E58: 600 | F58: 600 | G58: 600 | H58: 600 | I58: 600 | J58: 600 | K58: 600 | L58: 600 | M58: 600 | N58: 600 | O58: 600 | Q58: =SUM(Kanaalmarketingbudget!$D58:$O58) -> 7,200.00
B59: Totaal CAR € (000) | D59: =SUM(D56:D58) -> 900.00 | E59: =SUM(E56:E58) -> 900.00 | F59: 900.00 | G59: 900.00 | H59: 900.00 | I59: 900.00 | J59: 900.00 | K59: 900.00 | L59: 900.00 | M59: 900.00 | N59: 900.00 | O59: 900.00 | Q59: =SUM(Q56:Q58) -> 10,800.00
A60: Voer de gegevens in de tabel Overige uitgaven in, vanaf de cel rechts. Totaal Overige uitgaven voor elke maand wordt automatisch berekend aan het einde van de tabel, en het jaarlijkse totaal in cel Q65. Sparkline wordt bijgewerkt in cel S65. De volgende aanwijzing staat in cel A67. | B60: Items Overige uitgaven | C60: Tarief | D60: Maand 1 | E60: Maand 2 | F60: Maand 3 | G60: Maand 4 | H60: Maand 5 | I60: Maand 6 | J60: Maand 7 | K60: Maand 8 | L60: Maand 9 | M60: Maand 10 | N60: Maand 11 | O60: Maand 12
B61: OVERIGE UITGAVEN
B62: Reiskosten | D62: 50 | E62: 50 | F62: 50 | G62: 50 | H62: 50 | I62: 50 | J62: 50 | K62: 50 | L62: 50 | M62: 50 | N62: 50 | O62: 50 | Q62: =SUM(Kanaalmarketingbudget!$D62:$O62) -> 600.00
B63: Infrastructuur (computer, telefoon, enzovoort.) | D63: 250.00 | E63: 250.00 | F63: 250.00 | G63: 250.00 | H63: 250.00 | I63: 250.00 | J63: 250.00 | K63: 250.00 | L63: 250.00 | M63: 250.00 | N63: 250.00 | O63: 250.00 | Q63: =SUM(Kanaalmarketingbudget!$D63:$O63) -> 3,000.00
B64: Kanaalondersteuning | D64: 600 | E64: 600 | F64: 600 | G64: 600 | H64: 600 | I64: 600 | J64: 600 | K64: 600 | L64: 600 | M64: 600 | N64: 600 | O64: 600 | Q64: =SUM(Kanaalmarketingbudget!$D64:$O64) -> 7,200.00
B65: Totaal Overige uitgaven € (000) | D65: =SUM(D62:D64) -> 900.00 | E65: =SUM(E62:E64) -> 900.00 | F65: 900.00 | G65: 900.00 | H65: 900.00 | I65: 900.00 | J65: 900.00 | K65: 900.00 | L65: 900.00 | M65: 900.00 | N65: 900.00 | O65: 900.00 | Q65: =SUM(Q62:Q64) -> 10,800.00
A67: Totaal markeringbudget voor elke maand wordt automatisch berekend in deze rij, van cel D67 tot en met O67, en het jaarlijkse totaal in cel Q67. Sparkline wordt bijgewerkt in cel S67. | B67: TOTAAL MARKETINGBUDGET: | D67: =SUM(OverigeUitgaven[[#Totals],[Maand 1]],CAR[[#Totals],[Maand 1]],Verkoper[[#Totals],[Maand 1]],Distributeurs[[#Totals],[Maand 1]],AgentEnMakelaar[[#Totals],[Maand 1]],D31) -> 6,354.00 | E67: =SUM(OverigeUitgaven[[#Totals],[Maand 2]],CAR[[#Totals],[Maand 2]],Verkoper[[#Totals],[Maand 2]],Distributeurs[[#Totals],[Maand 2]],AgentEnMakelaar[[#Totals],[Maand 2]],E31) -> 5,785.85 | F67: =SUM(OverigeUitgaven[[#Totals],[Maand 3]],CAR[[#Totals],[Maand 3]],Verkoper[[#Totals],[Maand 3]],Distributeurs[[#Totals],[Maand 3]],AgentEnMakelaar[[#Totals],[Maand 3]],F31) -> 5,834.44 | G67: =SUM(OverigeUitgaven[[#Totals],[Maand 4]],CAR[[#Totals],[Maand 4]],Verkoper[[#Totals],[Maand 4]],Distributeurs[[#Totals],[Maand 4]],AgentEnMakelaar[[#Totals],[Maand 4]],G31) -> 5,902.05 | H67: =SUM(OverigeUitgaven[[#Totals],[Maand 5]],CAR[[#Totals],[Maand 5]],Verkoper[[#Totals],[Maand 5]],Distributeurs[[#Totals],[Maand 5]],AgentEnMakelaar[[#Totals],[Maand 5]],H31) -> 5,916.35 | I67: =SUM(OverigeUitgaven[[#Totals],[Maand 6]],CAR[[#Totals],[Maand 6]],Verkoper[[#Totals],[Maand 6]],Distributeurs[[#Totals],[Maand 6]],AgentEnMakelaar[[#Totals],[Maand 6]],I31) -> 5,935.69 | J67: =SUM(OverigeUitgaven[[#Totals],[Maand 7]],CAR[[#Totals],[Maand 7]],Verkoper[[#Totals],[Maand 7]],Distributeurs[[#Totals],[Maand 7]],AgentEnMakelaar[[#Totals],[Maand 7]],J31) -> 5,976.90 | K67: =SUM(OverigeUitgaven[[#Totals],[Maand 8]],CAR[[#Totals],[Maand 8]],Verkoper[[#Totals],[Maand 8]],Distributeurs[[#Totals],[Maand 8]],AgentEnMakelaar[[#Totals],[Maand 8]],K31) -> 6,015.84 | L67: =SUM(OverigeUitgaven[[#Totals],[Maand 9]],CAR[[#Totals],[Maand 9]],Verkoper[[#Totals],[Maand 9]],Distributeurs[[#Totals],[Maand 9]],AgentEnMakelaar[[#Totals],[Maand 9]],L31) -> 6,031.80 | M67: =SUM(OverigeUitgaven[[#Totals],[Maand 10]],CAR[[#Totals],[Maand 10]],Verkoper[[#Totals],[Maand 10]],Distributeurs[[#Totals],[Maand 10]],AgentEnMakelaar[[#Totals],[Maand 10]],M31) -> 6,001.80 | N67: =SUM(OverigeUitgaven[[#Totals],[Maand 11]],CAR[[#Totals],[Maand 11]],Verkoper[[#Totals],[Maand 11]],Distributeurs[[#Totals],[Maand 11]],AgentEnMakelaar[[#Totals],[Maand 11]],N31) -> 6,056.80 | O67: =SUM(OverigeUitgaven[[#Totals],[Maand 12]],CAR[[#Totals],[Maand 12]],Verkoper[[#Totals],[Maand 12]],Distributeurs[[#Totals],[Maand 12]],AgentEnMakelaar[[#Totals],[Maand 12]],O31) -> 6,001.80 | Q67: =SUM(D67:O67) -> 71,813.31
